[Event "Czech Extraliga 2023-24"]
[Site "Czech Republic"]
[Date "2024.04.06"]
[Round "10.2"]
[White "Sulypa, Oleksandr"]
[Black "Neugebauer, Martin"]
[Result "1-0"]
[ECO "A14"]
[WhiteElo "2458"]
[BlackElo "2525"]
[Annotator "TA"]
[PlyCount "71"]
[EventDate "2023.10.14"]
[EventCountry "CZE"]
[SourceTitle "playchess.com"]
[Source "ChessBase"]
[SourceQuality "1"]
[TimeControl "40/5400+30:1800+30"]

{[%evp 21,71,-2,17,-6,10,7,23,0,7,9,16,14,0,0,67,87,112,117,142,130,130,66,52,52,53,-10,23,-21,0,-23,33,45,38,39,50,52,54,49,43,17,68,77,75,0,272,281,802,766,820,811,797,787]} 1. Nf3 {[%emt 0:00:03]} Nf6 {[%emt 0:00:21]} 2. c4 {[%emt 0:00:37]} e6 {[%emt 0:00:31]} 3. g3 {[%emt 0:00:19]} d5 {[%emt 0:01:33]} 4. Bg2 {[%emt 0:01:10]} Be7 {[%emt 0:00:44]} 5. O-O {[%emt 0:01:04]} O-O {[%emt 0:00:38]} 6. b3 {[%emt 0:03:01]} b6 {[%emt 0:05:23]} 7. Bb2 {[%emt 0:00:30]} Bb7 {[%emt 0:00:06]} 8. e3 {[%emt 0:00:44]} c5 {[%emt 0:03:40]} 9. Nc3 {[%emt 0:02:50]} dxc4 {[%emt 0:03:48]} 10. bxc4 {[%emt 0:00:23]} Nc6 {[%emt 0:00:05]} 11. Qe2 {[%emt 0:00:10]} Rc8 {[%emt 0:02:07]} 12. Ne1 {[%emt 0:02:03][%cal Bf3e1,Be1g2,Bg2f4][%mdl 32]} Qd7 {[%emt 0:04:57]} 13. f4 {[%emt 0:01:32]} Rfd8 {[%emt 0:01:41]} 14. Rd1 {[%emt 0:05:28] White has an edge.} Na5 {[%emt 0:04:38]} 15. d3 {[%emt 0:10:46]} Bxg2 {[%emt 0:04:38]} 16. Nxg2 {[%emt 0:00:14]} a6 17. a4 {[%emt 0:22:27]} Ne8 {[%emt 0:04:03] [#]} ({Black should try} 17... Nc6 $11) 18. f5 $1 $14 {[%emt 0:04:20]} Bf6 {[%emt 0:24:30]} (18... Nf6 19. g4) 19. fxe6 {[%emt 0:01:28]} fxe6 {[%emt 0:00:36]} 20. Nf4 $1 {[%emt 0:02:54]} Nc6 {[%emt 0:05:07]} 21. Qg4 {[%emt 0:06:49]} (21. Ne4 $16 Qe7 22. d4) 21... Ne5 {[%emt 0:10:10]} 22. Qh3 {[%emt 0:12:22]} (22. Qh5 {feels hotter.} Nd6 23. Ne4 Nxe4 24. Bxe5 Qf7 25. Qxf7+ Kxf7 26. Nh5) 22... Nd6 {[%emt 0:01:28] Against Ne4} 23. g4 {[%emt 0:07:36]} ({Don't do} 23. Qxe6+ $6 Qxe6 24. Nxe6 Re8 $18) (23. Nxe6 Re8 24. Rxf6 gxf6 $11) (23. Ne4 $1 $14 Nf3+ (23... Qxa4 $2 24. Nxf6+ gxf6 25. Bxe5 $18) (23... Nxe4 24. dxe4 Qe7 25. Rxd8+ Rxd8 26. Qxe6+ Qxe6 27. Nxe6 $16) 24. Rxf3 Nxe4 25. Bxf6 (25. Qxe6+ $2 Qxe6 26. Nxe6 Bxb2 $19) 25... Nxf6 26. Qxe6+ (26. Nxe6 Re8 $11) 26... Qxe6 27. Nxe6) 23... Rf8 {[%emt 0:04:34]} 24. Qg2 {[%emt 0:06:05]} (24. Ne4 $5 Nxe4 25. dxe4 $11) 24... Qe7 {[%emt 0:06:13]} 25. Kh1 {[%emt 0:00:47][%cal Og4g5]} Rcd8 {[%emt 0:04:34] [#]} (25... Nc6 $11) 26. g5 $1 {[%emt 0:01:35]} Bxg5 {[%emt 0:00:09] [#]} 27. Ncd5 {[%emt 0:01:39]} exd5 {[%emt 0:01:49]} 28. Nxd5 {[%emt 0:00:06]} Qe6 {[%emt 0:01:50] Strongly threatening ...h6.} (28... Rxf1+ 29. Rxf1 Qe8 30. Qxg5 $18) 29. Qxg5 {[%emt 0:00:06]} Ng6 {[%emt 0:02:44] Repels Ne7+} 30. e4 {[%emt 0:04:00]} Nf7 {[%emt 0:01:06]} ({Black should play} 30... Rxf1+ $1 $11 31. Rxf1 Rf8 32. Rxf8+ Kxf8) 31. Qg3 {[%emt 0:00:16] Threatens to win with h4. Really sharp! White has more active pieces.} Nfe5 {[%emt 0:01:02]} 32. Bc3 $40 {[%emt 0:01:39][%mdl 128] White attacks.} (32. Kg2 $16) 32... Rb8 $2 {[%emt 0:00:51][%mdl 8192] [#]} (32... Rf7 $1 $11 {and Black stays safe.}) 33. Rf5 $1 $18 {[%emt 0:00:35][%cal Rc3e5]} Rxf5 {[%emt 0:00:51]} (33... Nc6 34. Rdf1 Nd4 35. Bxd4 cxd4) 34. exf5 {[%emt 0:00:02] White is clearly winning.} Qxf5 {[%emt 0:00:10] [#]} 35. Ne7+ $1 {[%emt 0:00:12][%mdl 512]} Nxe7 {[%emt 0:00:19]} 36. Bxe5 {[%emt 0:00:04] Weighted Error Value: White=0.17 (very precise) /Black=0.41.  Loses game:     	---       	Black=1      Mistake:       	White=3     	Black=4      Inaccurate:     	White=2     	Black=1      OK:         	White=5     	Black=8      Best:        	White=1     	---        Strong:       	White=2     	---        Brilliant:      	White=1     	---} 1-0

[Event "Czech Extraliga 2023-24"]
[Site "Czech Republic"]
[Date "2024.04.06"]
[Round "10.3"]
[White "L'Ami, Erwin"]
[Black "Nguyen, Thai Dai Van"]
[Result "1/2-1/2"]
[ECO "D02"]
[WhiteElo "2634"]
[BlackElo "2643"]
[Annotator "TA"]
[PlyCount "42"]
[EventDate "2023.10.14"]
[EventCountry "CZE"]
[SourceTitle "playchess.com"]
[Source "ChessBase"]
[SourceQuality "1"]
[TimeControl "40/5400+30:1800+30"]

{[%evp 9,42,6,6,6,11,5,17,0,31,-18,4,-3,-16,-12,-9,-5,-13,-31,-14,-20,0,0,0,0,0,-4,0,0,0,0,0,0,0,0,16]} 1. d4 {[%emt 0:00:04]} Nf6 {[%emt 0:00:25]} 2. Nf3 {[%emt 0:00:26]} d5 {[%emt 0:00:08]} 3. Bf4 {[%emt 0:00:11]} e6 {[%emt 0:05:29]} 4. e3 {[%emt 0:00:30]} c5 {[%emt 0:00:08]} 5. Nbd2 {[%emt 0:05:31]} Qb6 {[%emt 0:00:59]} 6. Rb1 {[%emt 0:04:17]} Bd6 {[%emt 0:01:32]} 7. dxc5 {[%emt 0:11:21]} Qxc5 {[%emt 0:00:22]} 8. Bd3 {[%emt 0:01:29]} Nbd7 {[%emt 0:10:46] [#] aiming for ...e5.} 9. Bg3 {[%emt 0:07:34]} (9. b4 $14 {should be considered.} Qc7 10. Bxd6 Qxd6 11. c4) 9... b6 {[%emt 0:07:27]} 10. O-O {[%emt 0:04:13]} (10. b4 $5 Qc7 $8 11. c4 $11) 10... Bxg3 {[%emt 0:03:40]} 11. hxg3 {[%emt 0:03:01]} Bb7 {[%emt 0:04:08]} 12. Qe2 {[%emt 0:02:01]} O-O {[%emt 0:00:38]} 13. Rfc1 {[%emt 0:01:58]} Qe7 {[%emt 0:04:19]} 14. Ba6 {[%emt 0:07:07] The position is equal.} Nc5 {[%emt 0:17:52]} 15. Bxb7 {[%emt 0:00:19]} Qxb7 {[%emt 0:00:02]} 16. c4 {[%emt 0:04:19]} Rac8 {[%emt 0:00:22]} 17. Rc2 {[%emt 0:05:53]} Nce4 {[%emt 0:09:02]} 18. Nxe4 {[%emt 0:05:41]} Nxe4 {[%emt 0:00:10]} 19. cxd5 {[%emt 0:02:15]} Qxd5 {[%emt 0:03:02]} 20. Rbc1 {[%emt 0:00:31]} Rxc2 {[%emt 0:00:58]} 21. Qxc2 {[%emt 0:00:15]} Nc5 {[%emt 0:05:04] Not much happened in this game.   Weighted Error Value: White=0.09 (flawless) /Black=0.05 (flawless) .  Mistake:       	White=1     	---        OK:         	White=5     	Black=4} 1/2-1/2

[Event "Czech Extraliga 2023-24"]
[Site "Czech Republic"]
[Date "2024.04.06"]
[Round "10.3"]
[White "Hracek, Zbynek"]
[Black "Volosin, Leon"]
[Result "1-0"]
[ECO "C42"]
[WhiteElo "2537"]
[BlackElo "2400"]
[Annotator "TA"]
[PlyCount "135"]
[EventDate "2023.10.14"]
[EventCountry "CZE"]
[SourceTitle "playchess.com"]
[Source "ChessBase"]
[SourceQuality "1"]
[TimeControl "40/5400+30:1800+30"]

{[%evp 9,135,13,13,10,20,11,25,18,32,14,30,18,34,25,25,26,32,33,28,29,35,13,22,8,39,25,52,41,49,47,59,33,46,36,33,35,33,28,43,39,44,25,38,26,52,45,50,55,76,78,79,57,72,70,91,72,103,103,102,102,103,79,132,108,207,66,57,77,167,167,162,154,134,36,35,33,31,18,39,33,49,51,80,80,87,95,197,305,291,206,203,220,255,255,255,255,247,247,273,66,66,16,18,0,0,0,8,0,8,0,0,0,0,0,29967,29950,29971,29972,29975,29977,29976,29978,29987,29987,29990,29991,29993,29994]} 1. e4 {[%emt 0:00:53]} e5 {[%emt 0:00:06]} 2. Nf3 {[%emt 0:00:31]} Nf6 {[%emt 0:00:06]} 3. Nxe5 {[%emt 0:00:15]} d6 {[%emt 0:00:05]} 4. Nd3 {[%emt 0:00:33]} Nxe4 {[%emt 0:00:10]} 5. Qe2 {[%emt 0:00:05]} Qe7 $1 {[%emt 0:00:10]} 6. Nf4 {[%emt 0:00:02]} Nf6 {[%emt 0:00:49] Wards off Nd5} 7. d4 {[%emt 0:00:17]} Qxe2+ {[%emt 0:01:14]} 8. Bxe2 {[%emt 0:00:22] White has an edge.} Be7 {[%emt 0:14:18]} 9. f3 {[%emt 0:04:16]} O-O {[%emt 0:08:19]} 10. Kf2 {[%emt 0:08:20]} d5 {[%emt 0:03:46]} 11. Nc3 {[%emt 0:05:16]} c6 {[%emt 0:02:45]} 12. Bd3 {[%emt 0:01:30]} Ne8 {[%emt 0:09:20][%cal Bf6e8,Be8g7,Bg7e6][%mdl 32]} 13. Re1 {[%emt 0:05:00]} Bf6 {[%emt 0:00:25]} 14. Nce2 {[%emt 0:00:10]} g6 {[%emt 0:02:48]} 15. b3 {[%emt 0:03:58]} Ng7 {[%emt 0:02:05]} 16. g4 {[%emt 0:06:16]} Ne6 {[%emt 0:03:38]} 17. c3 {[%emt 0:02:22]} Re8 {[%emt 0:08:09]} 18. Kg3 {[%emt 0:07:38]} (18. Nxe6 {looks sharper.} Bh4+ 19. Ng3 Rxe6 20. Bd2) 18... Nxf4 {[%emt 0:03:42]} 19. Bxf4 {[%emt 0:00:05]} Be6 {[%emt 0:00:14]} 20. Bh6 {[%emt 0:08:08]} Nd7 {[%emt 0:01:37]} 21. Nf4 {[%emt 0:08:17]} Nf8 {[%emt 0:03:23]} 22. h4 {[%emt 0:06:27]} Bd7 {[%emt 0:01:43]} 23. a4 {[%emt 0:01:27]} Ne6 {[%emt 0:01:01]} 24. Nxe6 {[%emt 0:01:12]} Rxe6 {[%emt 0:02:33]} 25. Rxe6 {[%emt 0:02:41]} Bxe6 {[%emt 0:00:30]} 26. b4 {[%emt 0:02:57]} a6 {[%emt 0:05:48]} 27. Rb1 {[%emt 0:03:29]} Bd7 {[%emt 0:01:24]} 28. Bf4 {[%emt 0:02:18]} Bg7 {[%emt 0:07:34]} 29. h5 {[%emt 0:01:44]} Bf6 {[%emt 0:02:16]} 30. Be5 {[%emt 0:10:45]} Bg7 {[%emt 0:05:03]} 31. g5 {[%emt 0:01:32]} Bf8 {[%emt 0:05:49]} 32. hxg6 {[%emt 0:03:09]} fxg6 {[%emt 0:00:51]} 33. c4 {[%emt 0:00:25]} Be6 {[%emt 0:03:15]} 34. c5 {[%emt 0:00:04]} Bd7 {[%emt 0:00:11]} 35. Rb3 {[%emt 0:02:34]} Be7 {[%emt 0:00:17]} (35... Bg7 $142) 36. f4 $16 {[%emt 0:00:07]} Kf7 {[%emt 0:00:12]} (36... Bf8 $16 37. b5 axb5) 37. b5 {[%emt 0:01:59]} (37. Be2 $18) 37... axb5 $14 {[%emt 0:00:24]} 38. axb5 {[%emt 0:00:01]} Ra1 {[%emt 0:00:25] Inhibits Bf1.} (38... Bf8 $16) 39. bxc6 $18 {[%emt 0:00:28]} bxc6 {[%emt 0:00:46]} 40. Rb7 $1 {[%emt 0:00:55]} Ke8 {[%emt 0:02:00] ...Ra3 is the strong threat.} 41. Kf2 {[%emt 0:03:51] White is more active.} (41. Rb8+ $1 $16 Kf7 42. Kf3 (42. Rh8 Ra3 $11)) 41... Ra8 $14 {[%emt 0:05:50]} 42. Ke3 {[%emt 0:02:08]} Bc8 {[%emt 0:03:33]} 43. Rb6 {[%emt 0:02:18]} Bd7 {[%emt 0:00:50]} 44. Rb2 {[%emt 0:02:58]} Bg4 {[%emt 0:03:02]} 45. Kd2 {[%emt 0:01:19]} Bd7 {[%emt 0:02:41]} 46. Kc2 {[%emt 0:00:07]} Bg4 {[%emt 0:00:54]} 47. Kb1 {[%emt 0:00:34]} Kf7 {[%emt 0:07:22]} (47... Bd8 $16 {was worth a try.}) 48. Rh2 $1 $18 {[%emt 0:06:02]} Bh5 {[%emt 0:00:44]} 49. Be2 {[%emt 0:00:40]} Bxe2 {[%emt 0:01:23]} 50. Rxe2 {[%emt 0:00:01][%mdl 4096] Endgame. KRB-KRB} Bf8 {[%emt 0:01:30] [#]} 51. Rb2 $1 {[%emt 0:05:38]} h5 {[%emt 0:01:12]} 52. gxh6 {[%emt 0:00:47]} ({Weaker is} 52. Rb6 Rc8 $11) 52... Bxh6 {[%emt 0:00:01]} 53. Rb7+ {[%emt 0:03:10]} ({Resist} 53. Rb6 $6 Rc8 $16) 53... Ke6 {[%emt 0:02:30]} 54. Rh7 $2 {[%emt 0:05:15] Prevents Rf8.} ({White must play} 54. Rc7 $18 Rf8 55. Rxc6+ Kf5 56. Kc2) 54... Bf8 $14 {[%emt 0:00:35]} 55. Rc7 {[%emt 0:00:02]} ({White should play} 55. Kc2 $14) 55... Ra6 $11 {[%emt 0:00:18]} 56. Kc2 {[%emt 0:00:03]} Be7 {[%emt 0:00:24]} 57. Kd3 {[%emt 0:01:28]} Bf6 {[%emt 0:04:39]} 58. Ke3 {[%emt 0:00:11]} Ra3+ {[%emt 0:00:48]} 59. Kf2 {[%emt 0:00:05]} Bxe5 {[%emt 0:01:18]} 60. fxe5 {[%emt 0:00:05] KR-KR} Kf5 {[%emt 0:00:11]} 61. Rxc6 {[%emt 0:00:06] Rf6+ would now be deadly.} Rd3 $2 {[%emt 0:01:03][%mdl 8192]} (61... Ke4 $11) 62. Rf6+ {[%emt 0:00:29] White mates.} Kg5 {[%emt 0:00:08]} 63. Rf7 {[%emt 0:02:00]} Rxd4 {[%emt 0:00:04] [#]} 64. c6 $1 {[%emt 0:00:04]} Rc4 {[%emt 0:01:05]} 65. c7 {[%emt 0:00:09]} Kh6 {[%emt 0:00:53]} 66. e6 {[%emt 0:00:14]} g5 {[%emt 0:00:12]} 67. e7 {[%emt 0:00:08]} Rxc7 {[%emt 0:00:52]} 68. e8=Q {[%emt 0:00:09] Weighted Error Value: White=0.19 (very precise) /Black=0.14 (very precise) .  Loses game:     	---       	Black=1      Missed win:     	White=1     	---        Mistake:       	White=3     	Black=4      Inaccurate:     	White=1     	Black=5      OK:         	White=15    	Black=15     Best:        	White=2     	Black=5      Strong:       	White=3     	---} ({Inferior is} 68. e8=B Rxf7+ 69. Bxf7 g4 $11) 1-0

[Event "Czech Extraliga 2023-24"]
[Site "Czech Republic"]
[Date "2024.04.06"]
[Round "10.3"]
[White "Babula, Vlastimil"]
[Black "Plat, Vojtech"]
[Result "1/2-1/2"]
[ECO "E94"]
[WhiteElo "2530"]
[BlackElo "2506"]
[Annotator "TA"]
[PlyCount "102"]
[EventDate "2023.10.14"]
[EventCountry "CZE"]
[SourceTitle "playchess.com"]
[Source "ChessBase"]
[SourceQuality "1"]
[TimeControl "40/5400+30:1800+30"]

{[%evp 19,102,27,44,47,69,50,70,60,62,66,76,62,71,66,62,44,78,79,95,102,101,106,109,104,101,109,101,100,120,117,119,114,127,112,127,101,100,99,100,101,110,91,166,166,138,122,166,166,166,166,142,142,182,166,166,159,159,159,159,0,104,66,66,66,66,66,86,87,87,111,114,107,103,110,110,104,97,114,123,76,78,93,96,94,68]} 1. d4 {[%emt 0:00:06]} d6 {[%emt 0:01:56]} 2. c4 {[%emt 0:00:31]} e5 {[%emt 0:00:09]} 3. Nf3 {[%emt 0:00:16]} exd4 {[%emt 0:00:16]} 4. Nxd4 {[%emt 0:00:18]} g6 {[%emt 0:00:25]} 5. Nc3 {[%emt 0:00:46]} Bg7 {[%emt 0:00:28]} 6. e4 {[%emt 0:00:45]} Nc6 {[%emt 0:00:37]} 7. Be3 {[%emt 0:00:48]} Nf6 {[%emt 0:01:01][%cal Bg8f6,Bf6d7,Bd7c5,Bc5e6,Be6d8][%mdl 32]} 8. Be2 {[%emt 0:01:32]} O-O {[%emt 0:00:07]} 9. O-O {[%emt 0:00:13]} Re8 {[%emt 0:01:17]} 10. f3 {[%emt 0:00:42]} Nd7 {[%emt 0:07:31][%cal Of7f5]} 11. Qd2 {[%emt 0:02:28]} Nc5 {[%emt 0:11:21]} 12. Rad1 {[%emt 0:02:51] aiming for Nxc6.} Ne6 {[%emt 0:00:23]} 13. Nxc6 {[%emt 0:14:46] White is slightly better.} bxc6 {[%emt 0:00:34] [#]} 14. c5 $1 {[%emt 0:00:34]} dxc5 {[%emt 0:03:34]} 15. Qxd8 {[%emt 0:00:19]} Rxd8 {[%emt 0:00:03]} 16. Rxd8+ {[%emt 0:00:18]} Nxd8 {[%emt 0:00:03]} 17. Bxc5 {[%emt 0:11:24]} Ne6 {[%emt 0:01:54]} 18. Be3 {[%emt 0:02:49]} Bd7 {[%emt 0:07:28]} 19. Rd1 {[%emt 0:01:50]} Be8 {[%emt 0:00:03]} 20. Bc4 {[%emt 0:02:58]} a5 {[%emt 0:00:50]} 21. Bxe6 {[%emt 0:12:38]} fxe6 {[%emt 0:00:14]} 22. Na4 {[%emt 0:00:16]} Kf7 {[%emt 0:02:08][%cal Oc6c5]} 23. b3 {[%emt 0:01:54]} e5 {[%emt 0:00:17]} 24. Kf2 {[%emt 0:01:01] White has more active pieces.} Bf6 {[%emt 0:01:28]} 25. Bc5 $36 {[%emt 0:07:01][%mdl 2048] White is on the roll.} h5 {[%emt 0:00:47][%cal Bh7h5,Bh5h4][%mdl 32]} 26. h3 {[%emt 0:02:01]} h4 {[%emt 0:01:19]} 27. Ba3 {[%emt 0:00:36]} Be7 {[%emt 0:05:30]} 28. Bxe7 {[%emt 0:01:14]} Kxe7 $16 {[%emt 0:00:01][%mdl 4096] Endgame. KRB-KRN} 29. Nc5 {[%emt 0:02:35]} Rb8 {[%emt 0:01:46]} 30. a4 {[%emt 0:03:23]} g5 {[%emt 0:01:28]} (30... Rb4 $16 31. g3 g5) 31. Ke3 {[%emt 0:00:24]} Rb6 {[%emt 0:06:03]} 32. Rd3 {[%emt 0:01:45]} Rb8 {[%emt 0:00:14]} 33. Kd2 {[%emt 0:00:39]} Rb6 {[%emt 0:00:31]} 34. Kc2 {[%emt 0:09:45]} Rb8 {[%emt 0:00:08]} 35. Kc3 {[%emt 0:02:38]} Rb4 {[%emt 0:02:52]} 36. Rd1 {[%emt 0:02:39]} Rb6 {[%emt 0:05:02]} 37. Rd2 {[%emt 0:03:19]} Rb8 {[%emt 0:00:38]} 38. Kb2 {[%emt 0:04:40]} Rb6 {[%emt 0:00:34]} 39. Kc3 {[%emt 0:01:23]} (39. Kc2 $142) 39... Rb8 $1 {[%emt 0:00:12]} 40. Nd3 {[%emt 0:01:54]} Bf7 {[%emt 0:06:26]} 41. b4 {[%emt 0:06:22]} (41. Nxe5 Rxb3+ 42. Kd4 (42. Kc2 Ra3 $11) 42... Rb4+ 43. Kc5 Rxa4) 41... axb4+ 42. Nxb4 {[%emt 0:00:09]} Ra8 {[%emt 0:01:47]} 43. Nxc6+ {[%emt 0:07:08] White is better.} Kf6 {[%emt 0:01:55]} 44. Kb4 $1 {[%emt 0:00:59] a5 is the strong threat.} Be8 {[%emt 0:00:16]} 45. Rc2 {[%emt 0:00:30] a5 would now be deadly.} Ke6 {[%emt 0:00:32] [#]} 46. Na5 $1 {[%emt 0:00:55]} Rb8+ {[%emt 0:02:17]} 47. Ka3 {[%emt 0:00:26]} Ra8 {[%emt 0:00:02]} 48. Rc5 {[%emt 0:02:22][%cal Oa5c4]} Bd7 {[%emt 0:04:28] [#]} 49. Nc4 {[%emt 0:02:45]} ({White should play} 49. Rd5 $1) 49... Rxa4+ {[%emt 0:00:06]} 50. Kb3 {[%emt 0:00:21]} Ra1 {[%emt 0:00:02]} 51. Nxe5 {[%emt 0:00:55]} Rb1+ {[%emt 0:00:36] White really could win this.   Weighted Error Value: White=0.08 (flawless) /Black=0.07 (flawless) .  Mistake:       	White=2     	Black=1      Inaccurate:     	White=1     	Black=2      OK:         	White=20    	Black=12     Best:        	White=3     	Black=11     Strong:       	White=2     	Black=1} 1/2-1/2

[Event "Czech Extraliga 2023-24"]
[Site "Czech Republic"]
[Date "2024.04.06"]
[Round "10.3"]
[White "Petr, Martin"]
[Black "Jakubowski, Krzysztof"]
[Result "1/2-1/2"]
[ECO "C45"]
[WhiteElo "2474"]
[BlackElo "2462"]
[Annotator "TA"]
[PlyCount "83"]
[EventDate "2023.10.14"]
[EventCountry "CZE"]
[SourceTitle "playchess.com"]
[Source "ChessBase"]
[SourceQuality "1"]
[TimeControl "40/5400+30:1800+30"]

{[%evp 17,83,12,30,-18,13,0,29,18,12,9,62,16,0,19,24,22,30,38,0,21,18,14,25,13,47,35,29,29,57,0,2,24,12,6,72,11,103,0,0,0,16,0,8,16,14,0,0,-40,-33,-54,-54,-39,-50,-45,0,0,0,0,0,0,0,0,0,0,0,0,0,0]} 1. e4 {[%emt 0:00:03]} e5 {[%emt 0:00:15]} 2. Nf3 {[%emt 0:01:47]} Nc6 {[%emt 0:00:14]} 3. d4 {[%emt 0:00:04]} exd4 {[%emt 0:00:08]} 4. Nxd4 {[%emt 0:00:05]} Nf6 {[%emt 0:00:07]} 5. Nxc6 {[%emt 0:01:36]} bxc6 {[%emt 0:00:08]} 6. e5 {[%emt 0:00:05]} Qe7 {[%emt 0:00:17]} 7. Qe2 {[%emt 0:00:07]} Nd5 {[%emt 0:00:07]} 8. c4 {[%emt 0:01:17]} Nb6 {[%emt 0:00:23]} 9. Nc3 {[%emt 0:01:40]} a5 {[%emt 0:00:32]} 10. Qe4 {[%emt 0:04:49]} (10. Be3 $142) 10... Ba6 {[%emt 0:01:53]} 11. Bd2 {[%emt 0:02:54]} Qe6 {[%emt 0:04:01]} 12. b3 {[%emt 0:01:54] White has an edge.} g6 {[%emt 0:28:28]} 13. Bd3 {[%emt 0:03:44]} Bg7 {[%emt 0:00:35]} ({Black should play} 13... Bb4 $11) 14. f4 {[%emt 0:09:42]} (14. O-O $1 $14 {might be stronger.}) 14... O-O $11 {[%emt 0:04:07]} 15. O-O {[%emt 0:00:29]} d5 {[%emt 0:05:25]} 16. cxd5 {[%emt 0:06:06]} cxd5 {[%emt 0:01:42]} 17. Qe2 {[%emt 0:00:48]} Bxd3 {[%emt 0:21:47]} 18. Qxd3 {[%emt 0:01:46]} c6 {[%emt 0:01:58] Prevents Nb5.} 19. Rac1 {[%emt 0:07:36]} Rfc8 {[%emt 0:01:09]} 20. Rfd1 {[%emt 0:06:54]} g5 {[%emt 0:07:38]} 21. fxg5 {[%emt 0:04:37]} Nd7 {[%emt 0:02:11]} 22. Ne2 {[%emt 0:11:07]} Bxe5 {[%emt 0:02:09]} (22... Qxe5 23. Bf4 Qe7 24. Ng3 $16) 23. Nd4 {[%emt 0:04:34]} (23. Ng3 $14) 23... Bxd4+ {[%emt 0:02:16]} 24. Qxd4 {[%emt 0:01:48]} c5 $1 {[%emt 0:00:33]} 25. Qf2 {[%emt 0:01:08] Threatening Re1.} Re8 {[%emt 0:02:44]} (25... d4 $11 {keeps the balance.}) 26. Rf1 {[%emt 0:02:23] White is more active.} (26. Re1 $16 Qd6 27. Rf1) 26... a4 {[%emt 0:02:19]} (26... d4 $1 $11) 27. bxa4 {[%emt 0:00:59]} (27. Rce1 $16 Qg6 28. Qf3) 27... d4 {[%emt 0:01:10][%cal Od7e5]} 28. a5 {[%emt 0:01:40]} Qd5 {[%emt 0:00:21]} 29. Qf5 {[%emt 0:03:26]} Qxf5 {[%emt 0:02:46]} 30. Rxf5 {[%emt 0:00:02]} Re2 {[%emt 0:00:05]} 31. Be1 {[%emt 0:05:19]} Ne5 {[%emt 0:01:49] [#] Threatens to win with ...Nd3.} 32. Bg3 {[%emt 0:03:19]} Nd3 {[%emt 0:00:29][%mdl 1024] Black has compensation.} 33. Rcf1 {[%emt 0:02:49]} c4 $1 {[%emt 0:00:45]} (33... Rxa5 34. Rxf7 Raxa2 35. Rf8+ Kg7 36. R8f7+ Kg8 (36... Kg6 37. R1f6+ Kxg5 38. h4+ Kh5 39. Rxh7+ Kg4 40. Rg7+ Kh5 41. Rg5#) 37. Rf8+ Kg7 38. R8f7+ Kg8 $11 (38... Kg6 39. R1f6+ Kxg5 40. h4+ Kh5 41. Rxh7+ Kg4 42. Rg7+ Kh5 43. Rg5#)) 34. Rd5 {[%emt 0:01:32]} Re4 {[%emt 0:01:16]} 35. Rd7 {[%emt 0:03:51]} c3 {[%emt 0:01:09]} 36. Rc7 {[%emt 0:00:04] The position is equal.} (36. Rfxf7 $5 c2 $8 37. Rg7+ Kf8 (37... Kh8 38. Rxh7+ Kg8 39. Rdg7+ Kf8 40. Bd6+) 38. Rdf7+ (38. Bd6+ $2 Ke8 $19) 38... Ke8 39. Rc7 c1=Q+ (39... c1=R+ 40. Rxc1 Nxc1 41. Rg8+ Ke7 42. Rxa8 $11) 40. Rxc1 Nxc1 41. Rg8+ (41. Rxh7 $2 Ne2+ 42. Kf1 Nxg3+ 43. hxg3 d3 $19) 41... Kd7 42. Rxa8 $11) 36... Ne5 {[%emt 0:01:19]} 37. Bxe5 {[%emt 0:02:39]} Rxe5 {[%emt 0:00:05]} 38. Rfxf7 {[%emt 0:00:03] aiming for Rg7+.} c2 {[%emt 0:02:15]} (38... Rexa5 39. Rg7+ (39. Rxh7 R5a7 $11) 39... Kf8 40. Rcf7+ (40. Rxh7 Kg8 $11) 40... Ke8 41. Rc7) 39. Rg7+ {[%emt 0:01:06]} (39. Rxh7 $2 c1=Q+ (39... Rexa5 40. g6 $11) (39... Raxa5 $2 40. Rhd7 $18) (39... Re1+ $2 40. Kf2 $19) 40. Rxc1 Kxh7 41. Rc7+ Kg6 $19) 39... Kf8 {[%emt 0:00:24]} 40. Rxh7 {[%emt 0:00:07]} Kg8 {[%emt 0:00:26] Against Rh8+} (40... Re1+ $2 41. Kf2 $18) 41. Rhg7+ {[%emt 0:32:36]} Kh8 {[%emt 0:32:10]} 42. Rh7+ $1 {[%emt 0:00:36] Weighted Error Value: White=0.16 (very precise) /Black=0.17 (very precise) .  Mistake:       	White=4     	Black=3      Inaccurate:     	White=1     	Black=5      OK:         	White=10    	Black=12     Best:        	White=2     	Black=3      Strong:       	White=1     	Black=2} ({But not} 42. Rgd7 $2 Re1+ (42... Raxa5 43. Rd8+) 43. Kf2 c1=Q (43... c1=R 44. Rh7+ Kg8 45. Rcg7+ Kf8 46. Rb7 $11) 44. Rxc1 (44. Rh7+ $2 Kg8 $19) 44... Rxc1 45. Rxd4 Rxa5 $19) 1/2-1/2